fUST/lending_fUST_20250616
["ID","MTS","AMOUNT","RATE_DAILY","PERIOD"]
[365981803,1750006238286,-532.198443,0.00019452,2]
[365981806,1750006238296,-460.0,0.00019452,2]
[365981808,1750006238305,-460.0,0.00019452,2]
[365981810,1750006238315,-313.2271762,0.00019452,2]
[365981812,1750006238324,-450.2226447,0.00019452,2]
[365981814,1750006238333,-460.0,0.00019452,2]
[365981816,1750006238343,-460.0,0.00019452,2]
[365981818,1750006238352,-460.0,0.00019452,2]
[365981820,1750006238361,-460.0,0.00019452,2]
[365981822,1750006238371,-383.01623968,0.00019452,2]
[365981823,1750006238380,-495.45,0.00019452,2]
[365981826,1750006238389,-460.0,0.00019452,2]
[365981828,1750006238399,-340.0,0.00019452,2]
[365981830,1750006238408,-460.0,0.00019452,2]
[365981832,1750006238418,-460.0,0.00019452,2]
[365981834,1750006238427,-460.0,0.00019452,2]
[365981836,1750006238437,-460.0,0.00019452,2]
[365981838,1750006238446,-300.29477367,0.00019452,2]
[365981840,1750006238455,-460.0,0.00019452,2]
[365981842,1750006238464,-460.0,0.00019452,2]
[365981844,1750006238476,-490.8354194,0.00019452,2]
[365981846,1750006238485,-460.0,0.00019452,2]
[365981848,1750006238494,-460.0,0.00019452,2]
[365981850,1750006238504,-460.0,0.00019452,2]
[365981852,1750006238513,-240.0,0.00019452,2]
[365981854,1750006238523,-460.0,0.00019452,2]
[365981856,1750006238532,-63.56507369,0.00019452,2]
[365981860,1750006238558,-300.0,0.00019452,2]
[365982319,1750006243275,-96.43492631,0.00019452,2]
[365982321,1750006243285,-460.0,0.00019452,2]
[365982323,1750006243294,-340.0,0.00019452,2]
[365982325,1750006243303,-460.0,0.00019452,2]
[365982327,1750006243313,-460.0,0.00019452,2]
[365982329,1750006243322,-233.36,0.00019452,2]
[365982331,1750006243331,-361.99525358,0.00019452,2]
[365982334,1750006243341,-460.0,0.00019452,2]
[365982337,1750006243350,-460.0,0.00019452,2]
[365982339,1750006243360,-460.0,0.00019452,2]
[365982341,1750006243369,-460.0,0.00019452,2]
[365982343,1750006243379,-494.79,0.00019452,2]
[365982345,1750006243388,-460.0,0.00019452,2]
[365982346,1750006243397,-460.0,0.00019452,2]
[365982348,1750006243407,-460.0,0.00019452,2]
[365982351,1750006243417,-460.0,0.00019452,2]
[365982353,1750006243427,-460.0,0.00019452,2]
[365982355,1750006243437,-460.0,0.00019452,2]
[365982357,1750006243447,-950.0,0.00019479,3]
[365982359,1750006243456,-954.0,0.00019479,3]
[365982360,1750006243465,-950.0,0.00019479,3]
[365982362,1750006243475,-950.0,0.00019479,3]
[365982364,1750006243485,-950.0,0.00019479,3]
[365982366,1750006243494,-501.82835657,0.00019567,2]
[365982368,1750006243503,-500.0,0.00019588,2]
[365982370,1750006243513,-471.07136956,0.00019684,2]
[365982372,1750006243522,-420.0,0.00019717,2]
[365982374,1750006243531,-460.0,0.00019726,2]
[365982376,1750006243540,-460.0,0.00019726,2]
[365982378,1750006243550,-460.0,0.00019726,2]
[365982380,1750006243560,-460.0,0.00019726,2]
[365982382,1750006243569,-460.0,0.00019726,2]
[365982384,1750006243578,-460.0,0.00019726,2]
[365982386,1750006243587,-460.0,0.00019726,2]
[365982388,1750006243597,-460.0,0.00019726,2]
[365982390,1750006243609,-460.0,0.00019726,2]
[365982392,1750006243619,-460.0,0.00019726,2]
[365982394,1750006243629,-340.0,0.00019726,2]
[365982396,1750006243638,-340.0,0.00019726,2]
[365982397,1750006243648,-460.0,0.00019726,2]
[365982398,1750006243658,-209.6,0.00019726,2]
[365982399,1750006243667,-460.0,0.00019726,2]
[365982400,1750006243676,-460.0,0.00019726,2]
[365982401,1750006243686,-460.0,0.00019726,2]
[365982402,1750006243695,-250.51025969,0.00019726,2]
[365982403,1750006243704,-460.0,0.00019726,2]
[365982404,1750006243714,-460.0,0.00019726,2]
[365982405,1750006243723,-364.2601988,0.00019726,2]
[365982406,1750006243732,-460.0,0.00019726,2]
[365982407,1750006243742,-460.0,0.00019726,2]
[365982408,1750006243752,-494.79,0.00019726,2]
[365982409,1750006243761,-460.0,0.00019726,2]
[365982410,1750006243770,-460.0,0.00019726,2]
[365982411,1750006243780,-340.0,0.00019726,2]
[365982412,1750006243789,-460.0,0.00019726,2]
[365982413,1750006243799,-460.0,0.00019726,2]
[365982414,1750006243808,-460.0,0.00019726,2]
[365982415,1750006243818,-151.0,0.00019754,2]
[365982416,1750006243827,-151.0,0.00019754,2]
[365982417,1750006243837,-151.0,0.00019754,2]
[365982418,1750006243847,-151.0,0.00019754,2]
[365982419,1750006243857,-151.0,0.00019781,2]
[365982420,1750006243866,-151.0,0.00019781,2]
[365982421,1750006243876,-151.0,0.00019781,2]
[365982422,1750006243886,-151.0,0.00019781,2]
[365982423,1750006243896,-198.7581701,0.00019809,2]
[365982424,1750006243906,-198.46116806,0.00019809,2]
[365982425,1750006243915,-198.42427947,0.00019809,2]
[365982426,1750006243925,-198.0,0.00019809,2]
[365982427,1750006243934,-342.59867933,0.00019906,2]
[365982428,1750006243944,-788.87592089,0.00019934,2]
[365982429,1750006243953,-5201.17779645,0.0002,2]
[365982430,1750006243963,-460.0,0.0002,2]
[365982431,1750006243973,-460.0,0.0002,2]
[365982432,1750006243982,-460.0,0.0002,2]
[365982433,1750006243992,-460.0,0.0002,2]
[365982434,1750006244001,-460.0,0.0002,2]
[365982435,1750006244011,-460.0,0.0002,2]
[365982436,1750006244020,-460.0,0.0002,2]
[365982437,1750006244030,-460.0,0.0002,2]
[365982438,1750006244040,-460.0,0.0002,2]
[365982439,1750006244049,-460.0,0.0002,2]
[365982440,1750006244059,-460.0,0.0002,2]
[365982441,1750006244068,-460.0,0.0002,2]
[365982442,1750006244078,-282.06098995,0.0002,2]
[365982443,1750006244087,-479.65315812,0.0002,2]
[365982444,1750006244097,-460.0,0.0002,2]
[365982445,1750006244106,-151.0,0.0002,2]
[365982446,1750006244115,-151.0,0.0002,2]
[365982447,1750006244125,-460.0,0.0002,2]
[365982448,1750006244135,-494.79,0.0002,2]
[365982449,1750006244145,-460.0,0.0002,2]
[365982450,1750006244155,-460.0,0.0002,2]
[365982451,1750006244164,-320.0,0.0002,2]
[365982452,1750006244173,-460.0,0.0002,2]
[365982453,1750006244188,-153.0,0.00020027,2]
[365982454,1750006244197,-153.0,0.00020055,2]
[365982455,1750006244207,-573.8932911,0.00020055,2]
[365982456,1750006244217,-158.9019424,0.00020055,2]
[365982457,1750006244227,-177.0323298,0.00020055,2]
[365982458,1750006244237,-177.0323298,0.00020055,2]
[365982459,1750006244246,-573.8932911,0.00020055,2]
[365982460,1750006244257,-153.0,0.00020055,2]
[365982461,1750006244267,-158.9019424,0.00020055,2]
[365982462,1750006244276,-158.9019424,0.00020055,2]
[365982463,1750006244286,-177.0323298,0.00020055,2]
[365982464,1750006244295,-573.8932911,0.00020055,2]
[365982465,1750006244304,-153.0,0.00020055,2]
[365982466,1750006244313,-176.246512,0.00020055,2]
[365982467,1750006244322,-565.974267,0.00020055,2]
[365982468,1750006244332,-153.0,0.00020055,2]
[365982469,1750006244341,-151.0,0.00020055,2]
[365982471,1750006244350,-154.283077,0.00020055,2]
[365982473,1750006244359,-151.0,0.00020055,2]
[365982475,1750006244368,-372.573037,0.00020055,2]
[365982476,1750006244378,-372.573037,0.00020055,2]
[365982477,1750006244388,-170.456833,0.00020055,2]
[365982478,1750006244397,-151.0,0.00020055,2]
[365982480,1750006244407,-151.0,0.00020055,2]
[365982482,1750006244417,-151.0,0.00020055,2]
[365982484,1750006244427,-151.0,0.00020055,2]
[365982486,1750006244436,-151.0,0.00020055,2]
[365982488,1750006244445,-151.0,0.00020055,2]
[365982490,1750006244454,-151.0,0.00020055,2]
[365982492,1750006244463,-333.453747,0.00020187,2]
[365982494,1750006244472,-305.0,0.000202,2]
[365982496,1750006244481,-460.0,0.00020273,2]
[365982498,1750006244490,-460.0,0.00020273,2]
[365982499,1750006244500,-460.0,0.00020273,2]
[365982501,1750006244509,-460.0,0.00020273,2]
[365982503,1750006244518,-460.0,0.00020273,2]
[365982505,1750006244529,-460.0,0.00020273,2]
[365982506,1750006244538,-460.0,0.00020273,2]
[365982508,1750006244547,-233.36315738,0.00020273,2]
[365982510,1750006244558,-460.0,0.00020273,2]
[365982512,1750006244567,-494.79,0.00020273,2]
[365982514,1750006244578,-460.0,0.00020273,2]
[365982516,1750006244587,-460.0,0.00020273,2]
[365982517,1750006244596,-460.0,0.00020273,2]
[365982519,1750006244605,-213.32089821,0.00020387,2]
[365982520,1750006244615,-160.0,0.00020392,2]
[365982522,1750006244624,-229.86375354,0.00020392,2]
[365982524,1750006244633,-835.55256958,0.00020392,2]
[365982526,1750006244642,-160.0,0.00020392,2]
[365982528,1750006244651,-424.47602138,0.00020392,2]
[365982529,1750006244660,-192.013,0.00020478,2]
[365982530,1750006244670,-160.0,0.000205,3]
[365982531,1750006244680,-1322.11193696,0.000205,3]
[365982532,1750006244689,-1322.11193682,0.000205,3]
[365982533,1750006244699,-1322.11193682,0.000205,3]
[365982534,1750006244708,-1322.11193682,0.000205,3]
[365982535,1750006244718,-825.02,0.00020538,3]
[365982536,1750006244728,-412.52,0.00020538,3]
[365982537,1750006244737,-460.0,0.00020547,2]
[365982538,1750006244747,-500.0,0.00020547,2]
[365982539,1750006244756,-156.60924,0.00020547,2]
[365982540,1750006244766,-460.0,0.00020547,2]
[365982541,1750006244775,-460.0,0.00020547,2]
[365982542,1750006244785,-460.0,0.00020547,2]
[365982543,1750006244794,-460.0,0.00020547,2]
[365982544,1750006244803,-460.0,0.00020547,2]
[365982545,1750006244820,-460.0,0.00020547,2]
[365982546,1750006244830,-494.79,0.00020547,2]
[365982547,1750006244839,-460.0,0.00020547,2]
[365982548,1750006244849,-460.0,0.00020547,2]
[365982549,1750006244858,-460.0,0.00020547,2]
[365982550,1750006244868,-1322.11193682,0.0002059,3]
[365982551,1750006244877,-432.99,0.000206,2]
[365982552,1750006244886,-1430.24,0.000206,2]
[365982553,1750006244895,-342.59867933,0.00020734,2]
[365982554,1750006244904,-1322.11193682,0.00020762,3]
[365982555,1750006244913,-788.87592089,0.00020789,2]
[365982556,1750006244923,-160.0,0.00020811,2]
[365982557,1750006244933,-460.0,0.00020821,2]
[365982558,1750006244944,-460.0,0.00020821,2]
[365982559,1750006244953,-460.0,0.00020821,2]
[365982560,1750006244962,-603.3928203,0.00020821,2]
[365982561,1750006244972,-460.0,0.00020821,2]
[365982562,1750006244981,-460.0,0.00020821,2]
[365982563,1750006244991,-494.79,0.00020821,2]
[365982564,1750006245000,-460.0,0.00020821,2]
[365982565,1750006245009,-460.0,0.00020821,2]
[365982566,1750006245019,-460.0,0.00020821,2]
[365982567,1750006245028,-153.0,0.00020877,2]
[365982568,1750006245037,-573.8932911,0.00020877,2]
[365982569,1750006245046,-153.0,0.00020877,2]
[365982570,1750006245056,-177.0323298,0.00020877,2]
[365982571,1750006245065,-153.0,0.00020877,2]
[365982572,1750006245074,-153.0,0.00020877,2]
[365982573,1750006245084,-153.0,0.00020877,2]
[365982574,1750006245093,-420.0,0.00020899,2]
[365982575,1750006245102,-1322.11193682,0.00020934,4]
[365982576,1750006245112,-9479.87840027,0.00021,2]
[365982685,1750006246162,-460.0,0.00019178,2]
[365982687,1750006246171,-1222.198475,0.00021,2]
[365982692,1750006246215,-57780.2154669,0.00021,2]
[365985955,1750006518694,318.283681,0.00013699,2]
[365985984,1750006923017,-183.66,0.00018086,2]
[365985985,1750006930345,361.9549812,0.00017454,2]
[365985986,1750006930965,-157.57546241,0.00018086,2]
[365985988,1750006968605,157.57546241,0.00017986,2]
[365985994,1750007228144,-169.207025,0.00018085,2]
[365985999,1750007238141,-772.40230728,0.00018085,2]
[365986000,1750007251084,-258.39066772,0.00018085,2]
[365986001,1750007251105,-300.0,0.00018085,2]
[365986002,1750007251126,-300.0,0.00018085,2]
[365986003,1750007251148,-1324.38097087,0.00018086,2]
[365986004,1750007251171,-500.0,0.00018086,2]
[365986005,1750007251193,-555.63631726,0.00018086,2]
[365986006,1750007251214,-596.62678228,0.00018086,2]
[365986007,1750007251236,-500.0,0.00018086,2]
[365986008,1750007251259,-500.0,0.00018086,2]
[365986009,1750007251282,-500.0,0.00018086,2]
[365986010,1750007251302,-352.33960601,0.00018086,2]
[365986011,1750007251323,-500.0,0.00018086,2]
[365986012,1750007251344,-372.50305735,0.00018086,2]
[365986013,1750007251364,-500.0,0.00018086,2]
[365986014,1750007251384,-500.0,0.00018086,2]
[365986015,1750007251405,-500.0,0.00018086,2]
[365986016,1750007251425,-500.0,0.00018086,2]
[365986017,1750007251446,-641.17506633,0.00018086,2]
[365986018,1750007251466,-158.76453759,0.00018086,2]
[365986019,1750007251490,-299.33061858,0.00018086,2]
[365986020,1750007251514,-500.0,0.00018087,2]
[365986021,1750007251538,-443.43789129,0.00018087,2]
[365986022,1750007251562,-500.0,0.00018087,2]
[365986023,1750007251584,-500.0,0.00018087,2]
[365986024,1750007251608,-500.0,0.00018087,2]
[365986025,1750007251631,-500.0,0.00018087,2]
[365986026,1750007251653,-500.0,0.00018087,2]
[365986027,1750007251675,-500.0,0.00018087,2]
[365986028,1750007251697,-8807.41448472,0.00018088,2]
[365986029,1750007253114,-172.63259987,0.00018088,2]
[365986030,1750007314304,700.406299,0.00017875,2]
[365986031,1750007317839,-183.66,0.00018072,2]
[365986033,1750007356072,-404.57500737,0.00018087,2]
[365986034,1750007356094,-300.0,0.00018087,2]
[365986035,1750007356116,-245.14777754,0.00018088,2]
[365986036,1750007356874,-320.7242476,0.00018088,2]
[365986037,1750007362109,-15354.08089027,0.00018088,2]
[365986038,1750007362128,-591.3666457,0.00018106,2]
[365986039,1750007362148,-504.429607,0.00018177,2]
[365986040,1750007362169,-308.91765799,0.000189,2]
[365986041,1750007363137,-26.98390086,0.000189,2]
[365986096,1750007372078,-500.0,0.00018999,2]
[365986097,1750007372101,-260.4065239,0.00018999,2]
[365986098,1750007372124,-500.0,0.00018999,2]
[365986099,1750007372146,-500.0,0.00018999,2]
[365986100,1750007372168,-500.0,0.00018999,2]
[365986101,1750007372191,-500.0,0.00018999,2]
[365986102,1750007372212,-500.0,0.00018999,2]
[365986103,1750007372236,-229.46389599,0.00019,2]
[365986104,1750007372256,-13180.42843671,0.00019166,2]
[365986117,1750007432578,-536.17,0.00019168,3]
[365986118,1750007432587,-300.0,0.00019176,2]
[365986119,1750007432596,-217.019,0.00019177,2]
[365986120,1750007432606,-1000.0,0.00019177,2]
[365986121,1750007432615,-1000.0,0.00019177,2]
[365986122,1750007432624,-1000.0,0.00019177,2]
[365986123,1750007432633,-598.44199453,0.00019177,2]
[365986124,1750007432905,-401.55800547,0.00019177,2]
[365986125,1750007432915,-1000.0,0.00019177,2]
[365986126,1750007432925,-138.71920962,0.00019177,2]
[365986127,1750007432946,-861.28079038,0.00019177,2]
[365986128,1750007432956,-500.0,0.00019177,2]
[365986129,1750007432965,-500.0,0.00019177,2]
[365986130,1750007432975,-460.0,0.00019178,2]
[365986131,1750007432985,-430.0,0.00019178,2]
[365986132,1750007432995,-440.0,0.00019178,2]
[365986133,1750007433005,-393.8251541,0.00019178,2]
[365986134,1750007433015,-440.0,0.00019178,2]
[365986135,1750007433025,-460.0,0.00019178,2]
[365986136,1750007433035,-63.11885092,0.00019178,2]
[365986137,1750007433047,-396.88114908,0.00019178,2]
[365986138,1750007433057,-348.78611757,0.00019178,2]
[365986172,1750007438290,-16000.0,0.00019166,2]
[365986174,1750007438300,-3212.67394506,0.00019166,2]
[365986176,1750007438309,-500.0,0.00019177,2]
[365986178,1750007438318,-500.0,0.00019177,2]
[365986180,1750007438327,-282.28456673,0.00019177,2]
[365986182,1750007438337,-81.21388243,0.00019178,2]
[365986184,1750007438346,-460.0,0.00019178,2]
[365986186,1750007438356,-460.0,0.00019178,2]
[365986188,1750007438366,-460.0,0.00019178,2]
[365986190,1750007438375,-432.85663331,0.00019178,2]
[365986192,1750007438385,-430.0,0.00019178,2]
[365986194,1750007438395,-430.84595288,0.00019178,2]
[365986196,1750007438404,-430.0,0.00019178,2]
[365986198,1750007438413,-168.1533853,0.00019178,2]
[365986200,1750007438422,-460.0,0.00019178,2]
[365986202,1750007438432,-471.00293034,0.00019178,2]
[365986204,1750007438441,-353.8115949,0.00019178,2]
[365986206,1750007438451,-460.0,0.00019178,2]
[365986208,1750007438460,-438.01766789,0.00019178,2]
[365986210,1750007438469,-405.1604439,0.00019178,2]
[365986212,1750007438478,-191.16713,0.00019178,2]
[365986214,1750007438488,-440.0,0.00019178,2]
[365986215,1750007438499,-440.0,0.00019178,2]
[365986216,1750007438509,-460.0,0.00019178,2]
[365986217,1750007438518,-371.29344144,0.00019178,2]
[365986219,1750007438528,-151.0,0.00019178,2]
[365986221,1750007438538,-460.0,0.00019178,2]
[365986223,1750007438547,-410.0,0.00019178,2]
[365986225,1750007438560,-430.0,0.00019178,2]
[365986228,1750007438571,-460.0,0.00019178,2]
[365986230,1750007438580,-522.01293202,0.00019178,2]
[365986232,1750007438592,-460.0,0.00019178,2]
[365986234,1750007438602,-415.06810836,0.00019178,2]
[365986236,1750007438611,-409.98631213,0.00019178,2]
[365986238,1750007438620,-460.0,0.00019178,2]
[365986240,1750007438631,-460.0,0.00019178,2]
[365986242,1750007438640,-460.0,0.00019178,2]
[365986244,1750007438649,-460.0,0.00019178,2]
[365986246,1750007438659,-354.25513656,0.00019178,2]
[365986248,1750007438668,-430.0,0.00019178,2]
[365986250,1750007438677,-460.0,0.00019178,2]
[365986252,1750007438686,-440.0,0.00019178,2]
[365986254,1750007438696,-460.0,0.00019178,2]
[365986256,1750007438706,-431.75866359,0.00019178,2]
[365986257,1750007438715,-410.0,0.00019178,2]
[365986258,1750007438724,-270.0,0.00019178,2]
[365986259,1750007438733,-440.0,0.00019178,2]
[365986260,1750007438743,-460.0,0.00019178,2]
[365986261,1750007438752,-430.0,0.00019178,2]
[365986262,1750007438761,-432.39716831,0.00019178,2]
[365986263,1750007438770,-430.0,0.00019178,2]
[365986264,1750007438780,-151.0,0.00019178,2]
[365986265,1750007438789,-430.0,0.00019178,2]
[365986266,1750007438798,-151.0,0.00019178,2]
[365986267,1750007438808,-440.0,0.00019178,2]
[365986268,1750007438818,-505.36052593,0.00019178,2]
[365986269,1750007438828,-430.0,0.00019178,2]
[365986270,1750007438837,-430.0,0.00019178,2]
[365986271,1750007438847,-430.0,0.00019178,2]
[365986272,1750007438857,-440.0,0.00019178,2]
[365986274,1750007438866,-460.0,0.00019178,2]
[365986275,1750007438875,-430.0,0.00019178,2]
[365986276,1750007438885,-405.36345012,0.00019178,2]
[365986278,1750007438894,-548.19915579,0.00019178,2]
[365986280,1750007438904,-440.0,0.00019178,2]
[365986282,1750007438913,-460.0,0.00019178,2]
[365986284,1750007438922,-151.0,0.00019178,2]
[365986286,1750007438932,-430.0,0.00019178,2]
[365986288,1750007438942,-233.35208697,0.00019178,2]
[365986290,1750007438950,-430.0,0.00019178,2]
[365986292,1750007438960,-430.0,0.00019178,2]
[365986294,1750007438969,-437.11489043,0.00019178,2]
[365986296,1750007438978,-430.0,0.00019178,2]
[365986298,1750007438988,-440.0,0.00019178,2]
[365986300,1750007438997,-460.0,0.00019178,2]
[365986302,1750007439006,-365.81082074,0.00019178,2]
[365986303,1750007439015,-256.95083678,0.00019178,2]
[365986306,1750007439025,-430.0,0.00019178,2]
[365986307,1750007439035,-440.0,0.00019178,2]
[365986309,1750007439046,-430.0,0.00019178,2]
[365986312,1750007439055,-440.0,0.00019178,2]
[365986313,1750007439065,-460.0,0.00019178,2]
[365986315,1750007439074,-313.93933695,0.00019178,2]
[365986317,1750007439083,-460.0,0.00019178,2]
[365986319,1750007439093,-430.0,0.00019178,2]
[365986321,1750007439102,-303.18511126,0.00019178,2]
[365986324,1750007439112,-248.13228667,0.00019178,2]
[365986326,1750007439121,-460.0,0.00019178,2]
[365986327,1750007439130,-151.0,0.00019178,2]
[365986329,1750007439140,-151.0,0.00019178,2]
[365986331,1750007439149,-390.0,0.00019178,2]
[365986333,1750007439159,-430.0,0.00019178,2]
[365986336,1750007439169,-440.0,0.00019178,2]
[365986338,1750007439178,-434.20276697,0.00019178,2]
[365986339,1750007439187,-151.0,0.00019178,2]
[365986342,1750007439197,-460.0,0.00019178,2]
[365986344,1750007439206,-440.0,0.00019178,2]
[365986346,1750007439215,-400.0,0.00019178,2]
[365986348,1750007439225,-430.0,0.00019178,2]
[365986350,1750007439234,-440.0,0.00019178,2]
[365986352,1750007439243,-161.63,0.00019178,2]
[365986354,1750007439252,-416.2760899,0.00019178,2]
[365986356,1750007439262,-440.0,0.00019178,2]
[365986358,1750007439271,-151.0,0.00019178,2]
[365986360,1750007439281,-151.0,0.00019178,2]
[365986362,1750007439291,-430.01911832,0.00019178,2]
[365986364,1750007439300,-440.0,0.00019178,2]
[365986366,1750007439310,-421.97511921,0.00019178,2]
[365986368,1750007439319,-460.0,0.00019178,2]
[365986370,1750007439328,-440.0,0.00019178,2]
[365986372,1750007439337,-319.5509278,0.00019178,2]
[365986374,1750007439347,-296.40932798,0.00019178,2]
[365986376,1750007439356,-440.0,0.00019178,2]
[365986378,1750007439366,-420.0,0.00019178,2]
[365986380,1750007439375,-430.0,0.00019178,2]
[365986382,1750007439384,-427.38307187,0.00019178,2]
[365986384,1750007439394,-320.0,0.00019178,2]
[365986386,1750007439403,-151.0,0.00019178,2]
[365986388,1750007439412,-183.590893,0.00019178,2]
[365986389,1750007439422,-151.0,0.00019178,2]
[365986392,1750007439432,-183.590893,0.00019178,2]
[365986394,1750007439441,-430.0,0.00019178,2]
[365986396,1750007439451,-460.0,0.00019178,2]
[365986398,1750007439460,-460.0,0.00019178,2]
[365986400,1750007439469,-440.47559736,0.00019178,2]
[365986401,1750007439478,-430.0,0.00019178,2]
[365986404,1750007439489,-446.41072766,0.00019178,2]
[365986406,1750007439499,-440.0,0.00019178,2]
[365986408,1750007439508,-460.0,0.00019178,2]
[365986410,1750007439518,-460.0,0.00019178,2]
[365986412,1750007439527,-420.0,0.00019178,2]
[365986414,1750007439537,-416.97722116,0.00019178,2]
[365986427,1750007439664,-151.0,0.00019178,2]
[365986429,1750007439677,-420.0,0.00019178,2]
[365986431,1750007439687,-460.0,0.00019178,2]
[365986434,1750007439697,-430.0,0.00019178,2]
[365986436,1750007439708,-430.63438417,0.00019178,2]
[365986438,1750007439719,-460.0,0.00019178,2]
[365986440,1750007439730,-430.0,0.00019178,2]
[365986442,1750007439740,-1132.076331,0.00019178,2]
[365986444,1750007439749,-1132.076331,0.00019178,2]
[365986446,1750007439758,-440.0,0.00019178,2]
[365986448,1750007439768,-1132.076331,0.00019178,2]
[365986450,1750007439779,-1132.076331,0.00019178,2]
[365986452,1750007439787,-430.0,0.00019178,2]
[365986454,1750007439796,-460.0,0.00019178,2]
[365986456,1750007439806,-440.0,0.00019178,2]
[365986458,1750007439815,-430.0,0.00019178,2]
[365986460,1750007439824,-304.62745888,0.00019178,2]
[365986462,1750007439834,-326.61019358,0.00019178,2]
[365986464,1750007439843,-153.718207,0.00019178,2]
[365986466,1750007439852,-440.0,0.00019178,2]
[365986468,1750007439861,-460.0,0.00019178,2]
[365986470,1750007439870,-431.51044296,0.00019178,2]
[365986472,1750007439880,-438.11747306,0.00019178,2]
[365986474,1750007439889,-460.0,0.00019178,2]
[365986476,1750007439898,-460.0,0.00019178,2]
[365986478,1750007439908,-400.0,0.00019178,2]
[365986481,1750007439918,-460.0,0.00019178,2]
[365986483,1750007439927,-432.13598396,0.00019178,2]
[365986485,1750007439936,-460.0,0.00019178,2]
[365986486,1750007439946,-405.5747463,0.00019178,2]
[365986488,1750007439955,-413.04895585,0.00019178,2]
[365986490,1750007439964,-406.34911925,0.00019178,2]
[365986492,1750007439973,-437.6567793,0.00019178,2]
[365986494,1750007439983,-440.0,0.00019178,2]
[365986496,1750007439992,-411.91899273,0.00019178,2]
[365986498,1750007440001,-440.0,0.00019178,2]
[365986500,1750007440011,-460.0,0.00019178,2]
[365986502,1750007440021,-460.0,0.00019178,2]
[365986504,1750007440030,-400.92573595,0.00019178,2]
[365986506,1750007440040,-402.62581873,0.00019178,2]
[365986508,1750007440050,-460.0,0.00019178,2]
[365986511,1750007440059,-460.0,0.00019178,2]
[365986513,1750007440068,-152.087997,0.00019178,2]
[365986515,1750007440077,-157.75692255,0.00019178,2]
[365986517,1750007440087,-460.0,0.00019178,2]
[365986519,1750007440096,-287.29105669,0.00019178,2]
[365986521,1750007440105,-460.0,0.00019178,2]
[365986523,1750007440115,-430.86228388,0.00019178,2]
[365986525,1750007440124,-420.0,0.00019178,2]
[365986527,1750007440133,-288.92214792,0.00019178,2]
[365986529,1750007440143,-460.0,0.00019178,2]
[365986531,1750007440152,-376.98678684,0.00019178,2]
[365986533,1750007440161,-460.0,0.00019178,2]
[365986535,1750007440171,-460.0,0.00019178,2]
[365986537,1750007440181,-460.0,0.00019178,2]
[365986539,1750007440189,-460.0,0.00019178,2]
[365986541,1750007440199,-151.0,0.00019178,2]
[365986543,1750007440208,-151.0,0.00019178,2]
[365986545,1750007440217,-460.0,0.00019178,2]
[365986547,1750007440226,-337.32748788,0.00019178,2]
[365986549,1750007440235,-460.0,0.00019178,2]
[365986551,1750007440245,-440.0,0.00019178,2]
[365986553,1750007440255,-460.0,0.00019178,2]
[365986555,1750007440264,-152.492134,0.00019178,2]
[365986557,1750007440273,-460.0,0.00019178,2]